{"text_format":"3","workbook":"xlsx","n_sheets":1,"sheets":["Мереке бюджетін жоспарлау"],"not_rendered":{"defined_names":1},"read":"whole","date_system":"1900"}

{"sheet":"Мереке бюджетін жоспарлау","index":0,"n_rows":34,"n_cols":10,"rows_kept":34,"merged":[[1,1,1,9],[2,1,2,3],[3,1,3,3],[3,6,3,9],[4,1,4,3],[5,1,5,3],[7,1,7,4],[11,6,11,9],[16,1,16,4],[17,1,17,4],[21,6,21,9],[22,6,22,9],[26,1,26,4],[27,1,27,4]]}
[]
[null,"Мерекеге бөлінетін бюджетті жоспарлау"]
[]
[null,"МЕРЕКЕГЕ БӨЛІНЕТІН БЮДЖЕТ",null,null,{"$f":"SUM(Gifts[Бюджет],Packaging[Бюджет],(Travel[Бюджет],(Meals[Бюджет],(Entertainment[Бюджет],Misc[Бюджет]))))","v":{"v":750,"d":"Т750.00"}},null,"Мерекелік ас"]
[null,"НАҚТЫ ЖҰМСАЛҒАНЫ",null,null,{"$f":"SUM((Gifts[Нақты],(Packaging[Нақты],(Travel[Нақты],(Meals[Нақты],(Entertainment[Нақты],(Misc[Нақты])))))))","v":{"v":820,"d":"Т820.00"}},null,"Зат","Бюджет","Нақты","Айырмашылық"]
[null,"АЙЫРМАШЫЛЫҚ (бюджеттен көп/аз)",null,null,{"$f":"SUM(E4-E5)","v":{"v":-70,"d":"-Т70.00"}},null,"Азық-түлік",null,null,{"$f":"Meals[Бюджет]-Meals[Нақты]","v":{"v":0,"d":"Т0.00"}}]
[{"$nulls":6},"Ішімдіктер",null,null,{"$f":"Meals[Бюджет]-Meals[Нақты]","v":{"v":0,"d":"Т0.00"}}]
[null,"Сыйлықтар",{"$nulls":4},"Декорациялар",null,null,{"$f":"Meals[Бюджет]-Meals[Нақты]","v":{"v":0,"d":"Т0.00"}}]
[null,"Зат","Бюджет","Нақты","Айырмашылық",null,"Басқа (жол қосу үшін осы жолдың соңғы бағанында tab пернесін басыңыз)",null,null,{"$f":"Meals[Бюджет]-Meals[Нақты]","v":{"v":0,"d":"Т0.00"}}]
[null,"Жанұя",{"v":500,"d":"Т500.00"},{"v":495,"d":"Т495.00"},{"$f":"Gifts[Бюджет]-Gifts[Нақты]","v":{"v":5,"d":"Т5.00"}},null,"Барлығы",{"$f":"SUBTOTAL(109,Meals[Бюджет])","v":{"v":0,"d":"Т0.00"}},{"$f":"SUBTOTAL(109,Meals[Нақты])","v":{"v":0,"d":"Т0.00"}},{"$f":"SUBTOTAL(109,Meals[Айырмашылық])","v":{"v":0,"d":"Т0.00"}}]
[null,"Достар",{"v":250,"d":"Т250.00"},{"v":325,"d":"Т325.00"},{"$f":"Gifts[Бюджет]-Gifts[Нақты]","v":{"v":-75,"d":"-Т75.00"}}]
[null,"Әріптестер",null,null,{"$f":"Gifts[Бюджет]-Gifts[Нақты]","v":{"v":0,"d":"Т0.00"}},null,"Көңіл-көтеру"]
[null,"Мұғалімдер, бала бағушылар және т.б.",null,null,{"$f":"Gifts[Бюджет]-Gifts[Нақты]","v":{"v":0,"d":"Т0.00"}},null,"Зат","Бюджет","Нақты","Айырмашылық"]
[null,"Қайырымдылық төлемдер",null,null,{"$f":"Gifts[Бюджет]-Gifts[Нақты]","v":{"v":0,"d":"Т0.00"}},null,"Той-думанға көмек жалдау (бармен, тамақ әкелуші, тазалаушылар және т.б.)",null,null,{"$f":"Entertainment[Бюджет]-Entertainment[Нақты]","v":{"v":0,"d":"Т0.00"}}]
[null,"Басқа (жол қосу үшін осы жолдың соңғы бағанында tab пернесін басыңыз)",null,null,{"$f":"Gifts[Бюджет]-Gifts[Нақты]","v":{"v":0,"d":"Т0.00"}},null,"Декорациялар",null,null,{"$f":"Entertainment[Бюджет]-Entertainment[Нақты]","v":{"v":0,"d":"Т0.00"}}]
[null,"Барлығы",{"$f":"SUBTOTAL(109,Gifts[Бюджет])","v":{"v":750,"d":"Т750.00"}},{"$f":"SUBTOTAL(109,Gifts[Нақты])","v":{"v":820,"d":"Т820.00"}},{"$f":"SUBTOTAL(109,Gifts[Айырмашылық])","v":{"v":-70,"d":"-Т70.00"}},null,"Тағам мен ішімдіктер",null,null,{"$f":"Entertainment[Бюджет]-Entertainment[Нақты]","v":{"v":0,"d":"Т0.00"}}]
[{"$nulls":6},"Киім",null,null,{"$f":"Entertainment[Бюджет]-Entertainment[Нақты]","v":{"v":0,"d":"Т0.00"}}]
[null,"Орама",{"$nulls":4},"Билеттер",null,null,{"$f":"Entertainment[Бюджет]-Entertainment[Нақты]","v":{"v":0,"d":"Т0.00"}}]
[null,"Зат","Бюджет","Нақты","Айырмашылық",null,"Үйден тыс тамақтану",null,null,{"$f":"Entertainment[Бюджет]-Entertainment[Нақты]","v":{"v":0,"d":"Т0.00"}}]
[null,"Сыйлықтың орамасы",null,null,{"$f":"Packaging[Бюджет]-Packaging[Нақты]","v":{"v":0,"d":"Т0.00"}},null,"Басқа (жол қосу үшін осы жолдың соңғы бағанында tab пернесін басыңыз)",null,null,{"$f":"Entertainment[Бюджет]-Entertainment[Нақты]","v":{"v":0,"d":"Т0.00"}}]
[null,"Белгілер",null,null,{"$f":"Packaging[Бюджет]-Packaging[Нақты]","v":{"v":0,"d":"Т0.00"}},null,"Барлығы",{"$f":"SUBTOTAL(109,Entertainment[Бюджет])","v":{"v":0,"d":"Т0.00"}},{"$f":"SUBTOTAL(109,Entertainment[Нақты])","v":{"v":0,"d":"Т0.00"}},{"$f":"SUBTOTAL(109,Entertainment[Айырмашылық])","v":{"v":0,"d":"Т0.00"}}]
[null,"Керек-жарақтар (таспа, скотч және т.б.)",null,null,{"$f":"Packaging[Бюджет]-Packaging[Нақты]","v":{"v":0,"d":"Т0.00"}}]
[null,"Қораптар",null,null,{"$f":"Packaging[Бюджет]-Packaging[Нақты]","v":{"v":0,"d":"Т0.00"}},null,"Аралас"]
[null,"Поштамен жіберу",null,null,{"$f":"Packaging[Бюджет]-Packaging[Нақты]","v":{"v":0,"d":"Т0.00"}},null,"Зат","Бюджет","Нақты","Айырмашылық"]
[null,"Басқа (жол қосу үшін осы жолдың соңғы бағанында tab пернесін басыңыз)",null,null,{"$f":"Packaging[Бюджет]-Packaging[Нақты]","v":{"v":0,"d":"Т0.00"}},null,"Мереке фотосуреттері",null,null,{"$f":"Misc[Бюджет]-Misc[Нақты]","v":{"v":0,"d":"Т0.00"}}]
[null,"Барлығы",{"$f":"SUBTOTAL(109,Packaging[Бюджет])","v":{"v":0,"d":"Т0.00"}},{"$f":"SUBTOTAL(109,Packaging[Нақты])","v":{"v":0,"d":"Т0.00"}},{"$f":"SUBTOTAL(109,Packaging[Айырмашылық])","v":{"v":0,"d":"Т0.00"}},null,"Бензин ",null,null,{"$f":"Misc[Бюджет]-Misc[Нақты]","v":{"v":0,"d":"Т0.00"}}]
[{"$nulls":6},"Басқа (жол қосу үшін осы жолдың соңғы бағанында tab пернесін басыңыз)",null,null,{"$f":"Misc[Бюджет]-Misc[Нақты]","v":{"v":0,"d":"Т0.00"}}]
[null,"Саяхат",{"$nulls":4},"Барлығы",{"$f":"SUBTOTAL(109,Misc[Бюджет])","v":{"v":0,"d":"Т0.00"}},{"$f":"SUBTOTAL(109,Misc[Нақты])","v":{"v":0,"d":"Т0.00"}},{"$f":"SUBTOTAL(109,Misc[Айырмашылық])","v":{"v":0,"d":"Т0.00"}}]
[null,"Зат","Бюджет","Нақты","Айырмашылық"]
[null,"Әуе жолы бағасы",null,null,{"$f":"Travel[Бюджет]-Travel[Нақты]","v":{"v":0,"d":"Т0.00"}}]
[null,"Үй жалдау",null,null,{"$f":"Travel[Бюджет]-Travel[Нақты]","v":{"v":0,"d":"Т0.00"}}]
[null,"Жол жүру",null,null,{"$f":"Travel[Бюджет]-Travel[Нақты]","v":{"v":0,"d":"Т0.00"}}]
[null,"Басқа (жол қосу үшін осы жолдың соңғы бағанында tab пернесін басыңыз)",null,null,{"$f":"Travel[Бюджет]-Travel[Нақты]","v":{"v":0,"d":"Т0.00"}}]
[null,"Барлығы",{"$f":"SUBTOTAL(109,Travel[Бюджет])","v":{"v":0,"d":"Т0.00"}},{"$f":"SUBTOTAL(109,Travel[Нақты])","v":{"v":0,"d":"Т0.00"}},{"$f":"SUBTOTAL(109,Travel[Айырмашылық])","v":{"v":0,"d":"Т0.00"}}]